lending/lending_fUSD_20250131
["ID","MTS","AMOUNT","RATE_DAILY","PERIOD"]
[351117180,1738342260763,-500.0,0.00016985,2]
[351117181,1738342260772,-500.0,0.00016985,2]
[351117182,1738342260781,-471.46145021,0.00016985,2]
[351117183,1738342260792,-500.0,0.00016985,2]
[351117184,1738342260801,-500.0,0.00016985,2]
[351117185,1738342260810,-500.0,0.00016985,2]
[351117186,1738342260820,-500.0,0.00016985,2]
[351117187,1738342260831,-592.44955595,0.00016985,2]
[351117188,1738342260840,-500.0,0.00016985,2]
[351117189,1738342260849,-161.72466807,0.00016985,2]
[351117190,1738342260858,-500.0,0.00016985,2]
[351117191,1738342260867,-500.0,0.00016985,2]
[351117192,1738342260876,-500.0,0.00016985,2]
[351117193,1738342260885,-500.0,0.00016985,2]
[351117194,1738342260895,-500.0,0.00016985,2]
[351117195,1738342260904,-500.0,0.00016985,2]
[351117196,1738342260914,-500.0,0.00016985,2]
[351117197,1738342260923,-500.0,0.00016985,2]
[351117198,1738342260933,-507.52738484,0.00016985,2]
[351117199,1738342260943,-500.0,0.00016985,2]
[351117200,1738342260952,-500.0,0.00016985,2]
[351117201,1738342260962,-500.0,0.00016985,2]
[351117202,1738342260971,-500.0,0.00016985,2]
[351117203,1738342260979,-500.0,0.00016986,2]
[351117204,1738342260989,-500.0,0.00016986,2]
[351117205,1738342260998,-500.0,0.00016986,2]
[351117206,1738342261007,-267.48550162,0.00016986,2]
[351117207,1738342261016,-565.74,0.00016986,2]
[351117208,1738342261025,-223.70594961,0.00016986,2]
[351117209,1738342261034,-500.0,0.00016986,2]
[351117210,1738342261043,-799.26,0.00016986,2]
[351117211,1738342261052,-500.0,0.00016986,2]
[351117212,1738342261061,-500.0,0.00016986,2]
[351117213,1738342261071,-500.0,0.00016986,2]
[351117214,1738342261080,-629.29476174,0.00016986,2]
[351117215,1738342261089,-500.0,0.00016986,2]
[351117216,1738342261099,-599.655912,0.00016986,2]
[351117217,1738342261108,-500.0,0.00016986,2]
[351117218,1738342261117,-500.0,0.00016986,2]
[351117219,1738342261127,-500.0,0.00016986,2]
[351117220,1738342261136,-582.941315,0.00016986,2]
[351117221,1738342261145,-500.0,0.00016986,2]
[351117222,1738342261154,-847.94,0.00016986,2]
[351117223,1738342261163,-500.0,0.00016986,2]
[351117224,1738342261172,-524.61,0.00016986,2]
[351117225,1738342261182,-500.0,0.00016986,2]
[351117226,1738342261191,-806.25,0.00016986,2]
[351117227,1738342261200,-791.88,0.00016986,2]
[351117228,1738342261209,-705.27,0.00016986,2]
[351117229,1738342261218,-500.0,0.00016986,2]
[351117230,1738342261227,-869.24,0.00016986,2]
[351117231,1738342261236,-719.69,0.00016986,2]
[351117232,1738342261245,-500.0,0.00016986,2]
[351117233,1738342261255,-500.0,0.00016986,2]
[351117234,1738342261264,-821.32,0.00016986,2]
[351117235,1738342261273,-500.0,0.00016986,2]
[351117236,1738342261282,-500.0,0.00016986,2]
[351117237,1738342261291,-500.0,0.00016986,2]
[351117238,1738342261300,-905.75,0.00016986,2]
[351117239,1738342261310,-324.0604453,0.00016986,2]
[351117240,1738342261319,-500.0,0.00016986,2]
[351117241,1738342261328,-573.01,0.00016986,2]
[351117242,1738342261338,-740.51,0.00016986,2]
[351117243,1738342261346,-500.0,0.00016986,2]
[351117244,1738342261355,-500.0,0.00016986,2]
[351117245,1738342261365,-500.0,0.00016986,2]
[351117246,1738342261374,-500.0,0.00016986,2]
[351117247,1738342261383,-507.9,0.00016986,2]
[351117248,1738342261392,-500.0,0.00016986,2]
[351117249,1738342261401,-500.0,0.00016986,2]
[351117250,1738342261410,-1105.19,0.00016986,2]
[351117251,1738342261419,-710.09,0.00016986,2]
[351117252,1738342261428,-500.0,0.00016986,2]
[351117253,1738342261438,-919.32,0.00016986,2]
[351117254,1738342261447,-577.81,0.00016986,2]
[351117255,1738342261456,-500.0,0.00016986,2]
[351117256,1738342261465,-500.0,0.00016986,2]
[351117257,1738342261477,-1149.27,0.00016986,2]
[351117258,1738342261490,-550.11,0.00016986,2]
[351117259,1738342261500,-500.0,0.00016986,2]
[351117260,1738342261509,-749.78,0.00016986,2]
[351117261,1738342261519,-500.0,0.00016986,2]
[351117262,1738342261528,-916.66,0.00016986,2]
[351117263,1738342261538,-500.0,0.00016986,2]
[351117264,1738342261547,-523.77,0.00016986,2]
[351117265,1738342261557,-551.33,0.00016986,2]
[351117266,1738342261567,-1072.53,0.00016986,2]
[351117267,1738342261578,-500.0,0.00016986,2]
[351117268,1738342261588,-737.84,0.00016986,2]
[351117269,1738342261598,-500.0,0.00016986,2]
[351117270,1738342261607,-768.71,0.00016986,2]
[351117271,1738342261617,-750.33,0.00016986,2]
[351117272,1738342261626,-500.0,0.00016986,2]
[351117273,1738342261635,-283.80746776,0.00016986,2]
[351117274,1738342261646,-500.0,0.00016986,2]
[351117275,1738342261655,-500.0,0.00016986,2]
[351117276,1738342261665,-537.8400295,0.00016986,2]
[351117277,1738342261675,-514.9,0.00016986,2]
[351117278,1738342261685,-1122.13,0.00016986,2]
[351117279,1738342261696,-500.0,0.00016986,2]
[351117280,1738342261707,-500.0,0.00016986,2]
[351117281,1738342261716,-659.41,0.00016986,2]
[351117282,1738342261727,-500.0,0.00016986,2]
[351117283,1738342261736,-500.0,0.00016986,2]
[351117284,1738342261746,-623.91,0.00016986,2]
[351117285,1738342261755,-500.0,0.00016986,2]
[351117286,1738342261765,-641.85,0.00016986,2]
[351117287,1738342261775,-500.0,0.00016986,2]
[351117288,1738342261785,-1029.01,0.00016986,2]
[351117289,1738342261794,-832.01,0.00016986,2]
[351117290,1738342261803,-876.06,0.00016986,2]
[351117291,1738342261814,-500.0,0.00016986,2]
[351117292,1738342261825,-532.9,0.00016986,2]
[351117293,1738342261835,-500.0,0.00016986,2]
[351117294,1738342261844,-500.0,0.00016986,2]
[351117295,1738342261854,-558.3,0.00016986,2]
[351117296,1738342261863,-579.8,0.00016986,2]
[351117297,1738342261872,-500.0,0.00016986,2]
[351117298,1738342261882,-500.85,0.00016986,2]
[351117299,1738342261891,-500.0,0.00016986,2]
[351117300,1738342261900,-500.0,0.00016986,2]
[351117301,1738342261910,-670.95,0.00016986,2]
[351117302,1738342261919,-500.0,0.00016986,2]
[351117303,1738342261930,-500.0,0.00016986,2]
[351117304,1738342261940,-500.0,0.00016986,2]
[351117305,1738342261951,-500.0,0.00016986,2]
[351117306,1738342261961,-500.0,0.00016986,2]
[351117307,1738342261970,-500.0,0.00016986,2]
[351117308,1738342261980,-500.0,0.00016986,2]
[351117309,1738342261990,-500.0,0.00016986,2]
[351117310,1738342262000,-500.0,0.00016986,2]
[351117311,1738342262010,-500.0,0.00016986,2]
[351117312,1738342262019,-500.0,0.00016986,2]
[351117313,1738342262029,-500.0,0.00016986,2]
[351117314,1738342262038,-500.0,0.00016986,2]
[351117315,1738342262047,-511.44,0.00016986,2]
[351117316,1738342262057,-558.07,0.00016986,2]
[351117317,1738342262066,-500.0,0.00016986,2]
[351117318,1738342262077,-500.0,0.00016986,2]
[351117319,1738342262087,-500.0,0.00016986,2]
[351117320,1738342262097,-500.0,0.00016986,2]
[351117321,1738342262107,-500.0,0.00016986,2]
[351117322,1738342262116,-932.44,0.00016986,2]
[351117323,1738342262126,-770.85,0.00016986,2]
[351117324,1738342262135,-500.0,0.00016986,2]
[351117325,1738342262145,-500.0,0.00016986,2]
[351117326,1738342262155,-1034.02,0.00016986,2]
[351117327,1738342262166,-500.0,0.00016986,2]
[351117328,1738342262175,-537.45,0.00016986,2]
[351117329,1738342262185,-448.21929281,0.00016986,2]
[351117330,1738342262194,-500.0,0.00016986,2]
[351117331,1738342262204,-574.53,0.00016986,2]
[351117332,1738342262214,-500.0,0.00016986,2]
[351117333,1738342262223,-1210.52,0.00016986,2]
[351117334,1738342262234,-2051.75,0.00016986,2]
[351117335,1738342262244,-735.62,0.00016986,2]
[351117336,1738342262254,-500.0,0.00016986,2]
[351117337,1738342262265,-558.79,0.00016986,2]
[351117338,1738342262275,-500.0,0.00016986,2]
[351117339,1738342262286,-500.0,0.00016986,2]
[351117340,1738342262297,-500.0,0.00016986,2]
[351117341,1738342262306,-500.0,0.00016986,2]
[351117342,1738342262316,-500.0,0.00016986,2]
[351117343,1738342262327,-500.0,0.00016986,2]
[351117344,1738342262337,-500.0,0.00016986,2]
[351117345,1738342262346,-849.95,0.00016986,2]
[351117346,1738342262357,-5553.43,0.00016986,2]
[351117347,1738342262366,-842.75,0.00016986,2]
[351117348,1738342262376,-870.17,0.00016986,2]
[351117349,1738342262385,-500.0,0.00016986,2]
[351117350,1738342262395,-1427.28,0.00016986,2]
[351117351,1738342262405,-447.23865336,0.00016986,2]
[351117352,1738342262414,-1862.88,0.00016986,2]
[351117353,1738342262424,-644.36,0.00016986,2]
[351117354,1738342262434,-500.0,0.00016986,2]
[351117355,1738342262443,-500.0,0.00016986,2]
[351117356,1738342262452,-946.07,0.00016986,2]
[351117357,1738342262462,-547.94,0.00016986,2]
[351117358,1738342262472,-652.16,0.00016986,2]
[351117359,1738342262481,-606.93,0.00016986,2]
[351117360,1738342262495,-2122.68,0.00016986,2]
[351117361,1738342262505,-500.0,0.00016986,2]
[351117362,1738342262515,-875.05,0.00016986,2]
[351117363,1738342262526,-737.5,0.00016986,2]
[351117364,1738342262537,-500.0,0.00016986,2]
[351117365,1738342262547,-500.0,0.00016986,2]
[351117366,1738342262557,-999.27,0.00016986,2]
[351117367,1738342262568,-500.0,0.00016986,2]
[351117368,1738342262582,-3624.9,0.00016986,2]
[351117369,1738342262593,-1114.2,0.00016986,2]
[351117370,1738342262603,-765.42,0.00016986,2]
[351117371,1738342262614,-1586.15,0.00016986,2]
[351117372,1738342262625,-1184.78,0.00016986,2]
[351117373,1738342262635,-901.83,0.00016986,2]
[351117374,1738342262646,-806.47,0.00016986,2]
[351117375,1738342262656,-708.98,0.00016986,2]
[351117376,1738342262666,-500.0,0.00016986,2]
[351117377,1738342262676,-500.0,0.00016986,2]
[351117378,1738342262686,-553.52,0.00016986,2]
[351117379,1738342262698,-2162.72,0.00016986,2]
[351117380,1738342262708,-500.0,0.00016986,2]
[351117381,1738342262719,-1056.54,0.00016986,2]
[351117382,1738342262728,-500.0,0.00016986,2]
[351117383,1738342262738,-876.06,0.00016986,2]
[351117384,1738342262748,-1223.0,0.00016986,2]
[351117385,1738342262758,-500.0,0.00016986,2]
[351117386,1738342262768,-500.0,0.00016986,2]
[351117387,1738342262778,-910.6,0.00016986,2]
[351117388,1738342262788,-1077.13,0.00016986,2]
[351117389,1738342262798,-543.95,0.00016986,2]
[351117390,1738342262807,-500.0,0.00016986,2]
[351117391,1738342262817,-500.0,0.00016986,2]
[351117392,1738342262830,-637.88,0.00016986,2]
[351117393,1738342262840,-548.61,0.00016986,2]
[351117394,1738342262850,-500.0,0.00016986,2]
[351117395,1738342262860,-854.38,0.00016986,2]
[351117396,1738342262870,-1738.96,0.00016986,2]
[351117397,1738342262880,-500.0,0.00016986,2]
[351117398,1738342262889,-985.04,0.00016986,2]
[351117399,1738342262900,-500.0,0.00016986,2]
[351117400,1738342262910,-500.0,0.00016986,2]
[351117401,1738342262920,-696.95,0.00016986,2]
[351117402,1738342262930,-500.0,0.00016986,2]
[351117403,1738342262939,-736.48,0.00016986,2]
[351117404,1738342262950,-500.0,0.00016986,2]
[351117405,1738342262960,-1084.41,0.00016986,2]
[351117406,1738342262970,-500.0,0.00016986,2]
[351117407,1738342262980,-907.33,0.00016986,2]
[351117408,1738342262990,-500.0,0.00016986,2]
[351117409,1738342262999,-590.95,0.00016986,2]
[351117410,1738342263008,-1161.06,0.00016986,2]
[351117411,1738342263018,-1073.16,0.00016986,2]
[351117412,1738342263028,-625.53,0.00016986,2]
[351117413,1738342263038,-500.0,0.00016986,2]
[351117414,1738342263048,-1101.76,0.00016986,2]
[351117415,1738342263059,-1873.5,0.00016986,2]
[351117416,1738342263068,-599.69,0.00016986,2]
[351117417,1738342263080,-500.0,0.00016986,2]
[351117418,1738342263091,-1821.67,0.00016986,2]
[351117419,1738342263102,-1313.27,0.00016986,2]
[351117420,1738342263112,-618.56,0.00016986,2]
[351117421,1738342263122,-500.0,0.00016986,2]
[351117422,1738342263133,-500.0,0.00016986,2]
[351117423,1738342263144,-2153.97,0.00016986,2]
[351117424,1738342263155,-500.0,0.00016986,2]
[351117425,1738342263165,-500.0,0.00016986,7]
[351117426,1738342263176,-500.0,0.00016986,2]
[351117427,1738342263186,-2200.41,0.00016986,2]
[351117428,1738342263197,-1292.23,0.00016986,2]
[351117429,1738342263208,-500.0,0.00016986,2]
[351117430,1738342263218,-500.0,0.00016986,2]
[351117431,1738342263228,-500.0,0.00016986,2]
[351117432,1738342263238,-647.39,0.00016986,2]
[351117433,1738342263249,-511.48560337,0.00016986,2]
[351117434,1738342263259,-2161.46,0.00016986,2]
[351117435,1738342263270,-812.84,0.00016986,2]
[351117436,1738342263280,-859.99,0.00016986,2]
[351117437,1738342263291,-1964.96,0.00016986,2]
[351117438,1738342263302,-1333.15,0.00016986,2]
[351117439,1738342263312,-597.11,0.00016986,2]
[351117440,1738342263323,-663.52,0.00016986,2]
[351117441,1738342263334,-500.0,0.00016986,2]
[351117442,1738342263344,-500.0,0.00016986,2]
[351117443,1738342263354,-500.0,0.00016986,2]
[351117444,1738342263364,-580.35,0.00016986,2]
[351117445,1738342263375,-808.41,0.00016986,2]
[351117446,1738342263386,-1589.04,0.00016986,2]
[351117447,1738342263396,-793.55,0.00016986,2]
[351117448,1738342263407,-1060.78,0.00016986,2]
[351117449,1738342263417,-993.9,0.00016986,2]
[351117450,1738342263428,-4214.69,0.00016986,2]
[351117451,1738342263442,-607.58,0.00016986,2]
[351117452,1738342263453,-928.84,0.00016986,2]
[351117453,1738342263463,-652.41,0.00016986,2]
[351117454,1738342263473,-2629.44,0.00016986,2]
[351117455,1738342263485,-500.0,0.00016986,2]
[351117456,1738342263498,-2238.64,0.00016986,2]
[351117457,1738342263508,-1964.96,0.00016986,2]
[351117458,1738342263518,-599.97,0.00016986,2]
[351117459,1738342263530,-697.51,0.00016986,2]
[351117460,1738342263540,-640.63,0.00016986,2]
[351117461,1738342263551,-1888.52,0.00016986,2]
[351117462,1738342263562,-500.0,0.00016986,2]
[351117463,1738342263574,-727.94,0.00016986,2]
[351117464,1738342263584,-1014.48,0.00016986,2]
[351117465,1738342263594,-500.0,0.00016986,2]
[351117466,1738342263604,-828.89,0.00016986,2]
[351117467,1738342263614,-522.09858601,0.00016986,2]
[351117468,1738342263624,-1487.99,0.00016986,2]
[351117469,1738342263635,-3222.5,0.00016986,2]
[351117470,1738342263645,-1795.19,0.00016986,2]
[351117471,1738342263656,-2265.6,0.00016986,2]
[351117472,1738342263666,-872.12,0.00016986,2]
[351117473,1738342263676,-816.69,0.00016986,2]
[351117474,1738342263686,-500.0,0.00016986,2]
[351117475,1738342263697,-500.0,0.00016986,2]
[351117476,1738342263707,-1031.69,0.00016986,2]
[351117477,1738342263718,-500.0,0.00016986,2]
[351117478,1738342263728,-670.33,0.00016986,2]
[351117479,1738342263738,-500.0,0.00016986,2]
[351117480,1738342263748,-993.78,0.00016986,2]
[351117481,1738342263758,-516.0532951,0.00016986,2]
[351117482,1738342263768,-500.0,0.00016986,2]
[351117483,1738342264020,-500.0,0.00016986,2]
[351117484,1738342264031,-1282.54,0.00016986,2]
[351117485,1738342264041,-2751.51,0.00016986,2]
[351117486,1738342264050,-500.0,0.00016986,2]
[351117487,1738342264060,-500.0,0.00016986,2]
[351117488,1738342264071,-1329.51,0.00016986,2]
[351117489,1738342264081,-3525.57,0.00016986,2]
[351117490,1738342264091,-1305.13,0.00016986,2]
[351117491,1738342264100,-688.66,0.00016986,2]
[351117492,1738342264111,-500.0,0.00016986,2]
[351117493,1738342264122,-841.88,0.00016986,2]
[351117494,1738342264132,-845.67,0.00016986,2]
[351117495,1738342264142,-500.0,0.00016986,2]
[351117496,1738342264152,-674.52,0.00016986,2]
[351117497,1738342264161,-580.04,0.00016986,2]
[351117498,1738342264171,-1244.66,0.00016986,2]
[351117499,1738342264181,-727.99,0.00016986,2]
[351117500,1738342264192,-2549.75,0.00016988,2]
[351117501,1738342264201,-3720.85,0.00016988,2]
[351117502,1738342264211,-909.48,0.00016988,2]
[351117503,1738342264222,-788.14,0.00016988,2]
[351117504,1738342264232,-677.82,0.00016988,2]
[351117505,1738342264243,-1339.48,0.00016988,2]
[351117506,1738342264254,-500.0,0.00016988,2]
[351117507,1738342264264,-730.83,0.00016988,2]
[351117508,1738342264273,-1274.55,0.00016988,2]
[351117509,1738342264284,-1019.17,0.00016988,2]
[351117510,1738342264293,-1000.0,0.00016988,2]
[351117511,1738342264303,-725.98,0.00016988,2]
[351117512,1738342264313,-500.0,0.00016988,2]
[351117513,1738342264325,-925.96,0.00016988,2]
[351117514,1738342264335,-1634.97,0.00016988,2]
[351117515,1738342264346,-1000.0,0.00016989,2]
[351117516,1738342264357,-151.0,0.00017,2]
[351117517,1738342264368,-231.125,0.00017,2]
[351117518,1738342264379,-231.125,0.00017,2]
[351117519,1738342264390,-231.0,0.00017,2]
[351117520,1738342264401,-366.0,0.00017,2]
[351117521,1738342264412,-746.0,0.00017,2]
[351117522,1738342264422,-774.06,0.00017014,2]
[351117523,1738342264432,-359.76243041,0.00017014,2]
[351117524,1738342264442,-2533.9,0.00017022,2]
[351117525,1738342264452,-590.72,0.00017022,2]
[351117526,1738342264462,-2265.53,0.00017022,2]
[351117527,1738342264473,-738.79,0.00017022,2]
[351117528,1738342264483,-500.0,0.00017022,2]
[351117529,1738342264497,-737.08,0.00017022,2]
[351117530,1738342264507,-359.76243041,0.00017063,2]
[351117531,1738342264518,-1158.7318,0.000171,2]
[351117532,1738342264529,-1306.7193,0.000171,2]
[351117533,1738342264538,-2037.5787,0.000171,2]
[351117534,1738342264548,-8343.4823618,0.00017109,2]
[351117535,1738342264558,-2262.3056873,0.00017109,2]
[351117536,1738342264568,-213.3184089,0.00017109,2]
[351117537,1738342264583,-167.90870425,0.0001711,2]
[351117538,1738342264593,-359.76243041,0.00017111,2]
[351117539,1738342264603,-500.0,0.00017119,2]
[351117540,1738342264614,-63338.65521672,0.0001712,2]
[351117541,1738342264623,-165.237742,0.0001712,2]
[351117542,1738342264632,-151.0,0.0001712,2]
[351117543,1738342264642,-151.177763,0.0001712,2]
[351117544,1738342264651,-3000.0,0.0001712,2]
[351117545,1738342264661,-150.0,0.00017121,2]
[351117546,1738342264670,-150.0,0.00017121,2]
[351117547,1738342264680,-150.0,0.00017121,2]
[351117548,1738342264689,-500.0,0.00017121,2]
[351117549,1738342264700,-150.9515732,0.00017121,2]
[351117550,1738342264710,-500.0,0.00017122,2]
[351117551,1738342264719,-260.00194223,0.00017122,2]
[351117552,1738342264728,-500.0,0.00017122,2]
[351117553,1738342264738,-500.0,0.00017122,2]
[351117554,1738342264747,-500.0,0.00017122,2]
[351117555,1738342264757,-500.0,0.00017122,2]
[351117556,1738342264766,-526.64806114,0.00017122,2]
[351117557,1738342264776,-500.0,0.00017122,2]
[351117558,1738342264785,-500.0,0.00017122,2]
[351117559,1738342264795,-500.0,0.00017122,2]
[351117560,1738342264805,-497.83162335,0.00017122,2]
[351117561,1738342264815,-510.59898554,0.00017122,2]
[351117562,1738342264827,-500.0,0.00017122,2]
[351117563,1738342264837,-500.0,0.00017122,2]
[351117564,1738342264847,-500.0,0.00017122,2]
[351117565,1738342264857,-500.0,0.00017122,2]
[351117566,1738342264867,-500.0,0.00017122,2]
[351117567,1738342264876,-500.0,0.00017122,2]
[351117568,1738342264886,-500.0,0.00017122,2]
[351117569,1738342264896,-500.0,0.00017122,2]
[351117570,1738342264906,-500.0,0.00017122,2]
[351117571,1738342264916,-370.71690518,0.00017122,2]
[351117572,1738342264927,-500.0,0.00017122,2]
[351117573,1738342264936,-151.0,0.00017123,2]
[351117574,1738342264946,-500.0,0.00017123,2]
[351117575,1738342264956,-565.74,0.00017123,2]
[351117576,1738342264966,-799.26,0.00017123,2]
[351117577,1738342264975,-500.0,0.00017123,2]
[351117578,1738342264985,-500.0,0.00017123,2]
[351117579,1738342264994,-500.0,0.00017123,2]
[351117580,1738342265004,-599.655912,0.00017123,2]
[351117581,1738342265013,-500.0,0.00017123,2]
[351117582,1738342265022,-500.0,0.00017123,2]
[351117583,1738342265031,-500.0,0.00017123,2]
[351117584,1738342265040,-582.941315,0.00017123,2]
[351117585,1738342265050,-500.0,0.00017123,2]
[351117586,1738342265059,-847.94,0.00017123,2]
[351117587,1738342265068,-500.0,0.00017123,2]
[351117588,1738342265080,-524.61,0.00017123,2]
[351117589,1738342265089,-500.0,0.00017123,2]
[351117590,1738342265098,-806.25,0.00017123,2]
[351117591,1738342265108,-791.88,0.00017123,2]
[351117592,1738342265117,-705.27,0.00017123,2]
[351117593,1738342265127,-500.0,0.00017123,2]
[351117594,1738342265136,-869.24,0.00017123,2]
[351117595,1738342265146,-719.69,0.00017123,2]
[351117596,1738342265156,-500.0,0.00017123,2]
[351117597,1738342265165,-500.0,0.00017123,2]
[351117598,1738342265174,-821.32,0.00017123,2]
[351117599,1738342265184,-500.0,0.00017123,2]
[351117600,1738342265193,-500.0,0.00017123,2]
[351117601,1738342265203,-500.0,0.00017123,2]
[351117602,1738342265212,-905.75,0.00017123,2]
[351117603,1738342265222,-500.0,0.00017123,2]
[351117604,1738342265231,-573.01,0.00017123,2]
[351117605,1738342265241,-740.51,0.00017123,2]
[351117606,1738342265250,-500.0,0.00017123,2]
[351117607,1738342265259,-500.0,0.00017123,2]
[351117608,1738342265269,-500.0,0.00017123,2]
[351117609,1738342265278,-500.0,0.00017123,2]
[351117610,1738342265287,-507.9,0.00017123,2]
[351117611,1738342265296,-500.0,0.00017123,2]
[351117612,1738342265305,-500.0,0.00017123,2]
[351117613,1738342265315,-1105.19,0.00017123,2]
[351117614,1738342265326,-710.09,0.00017123,2]
[351117615,1738342265334,-500.0,0.00017123,2]
[351117616,1738342265344,-577.81,0.00017123,2]
[351117617,1738342265353,-919.32,0.00017123,2]
[351117618,1738342265363,-500.0,0.00017123,2]
[351117619,1738342265373,-500.0,0.00017123,2]
[351117620,1738342265383,-1149.27,0.00017123,2]
[351117621,1738342265392,-550.11,0.00017123,2]
[351117622,1738342265401,-521.88738773,0.00017123,2]
[351117623,1738342265411,-749.78,0.00017123,2]
[351117624,1738342265421,-500.0,0.00017123,2]
[351117625,1738342265430,-916.66,0.00017123,2]
[351117626,1738342265438,-500.0,0.00017123,2]
[351117627,1738342265448,-523.77,0.00017123,2]
[351117628,1738342265458,-551.33,0.00017123,2]
[351117629,1738342265467,-1072.53,0.00017123,2]
[351117630,1738342265476,-500.0,0.00017123,2]
[351117631,1738342265487,-737.84,0.00017123,2]
[351117632,1738342265500,-500.0,0.00017123,2]
[351117633,1738342265509,-768.71,0.00017123,2]
[351117634,1738342265518,-750.33,0.00017123,2]
[351117635,1738342265527,-500.0,0.00017123,2]
[351117636,1738342265537,-500.0,0.00017123,2]
[351117637,1738342265546,-514.9,0.00017123,2]
[351117638,1738342265556,-1122.13,0.00017123,2]
[351117639,1738342265566,-500.0,0.00017123,2]
[351117640,1738342265577,-500.0,0.00017123,2]
[351117641,1738342265586,-659.41,0.00017123,2]
[351117642,1738342265596,-500.0,0.00017123,2]
[351117643,1738342265605,-500.0,0.00017123,2]
[351117644,1738342265614,-623.91,0.00017123,2]
[351117645,1738342265624,-500.0,0.00017123,2]
[351117646,1738342265634,-641.85,0.00017123,2]
[351117647,1738342265643,-500.0,0.00017123,2]
[351117648,1738342265653,-1029.01,0.00017123,2]
[351117649,1738342265662,-832.01,0.00017123,2]
[351117650,1738342265672,-876.06,0.00017123,2]
[351117651,1738342265681,-500.0,0.00017123,2]
[351117652,1738342265691,-500.0,0.00017123,2]
[351117653,1738342265700,-235.67680875,0.00017123,2]
[351117654,1738342265710,-558.3,0.00017123,2]
[351117655,1738342265720,-579.8,0.00017123,2]
[351117656,1738342265729,-500.0,0.00017123,2]
[351117657,1738342265738,-500.85,0.00017123,2]
[351117658,1738342265747,-500.0,0.00017123,2]
[351117659,1738342265758,-500.0,0.00017123,2]
[351117660,1738342265767,-670.95,0.00017123,2]
[351117661,1738342265776,-500.0,0.00017123,2]
[351117662,1738342265785,-500.0,0.00017123,2]
[351117663,1738342265795,-500.0,0.00017123,2]
[351117664,1738342265805,-500.0,0.00017123,2]
[351117665,1738342265814,-500.0,0.00017123,2]
[351117666,1738342265825,-500.0,0.00017123,2]
[351117667,1738342265835,-500.0,0.00017123,2]
[351117668,1738342265845,-500.0,0.00017123,2]
[351117669,1738342265854,-500.0,0.00017123,2]
[351117670,1738342265864,-500.0,0.00017123,2]
[351117671,1738342265873,-500.0,0.00017123,2]
[351117672,1738342265882,-511.44,0.00017123,2]
[351117673,1738342265891,-558.07,0.00017123,2]
[351117674,1738342265901,-209.88950281,0.00017123,2]
[351117675,1738342265911,-500.0,0.00017123,2]
[351117676,1738342265920,-500.0,0.00017123,2]
[351117677,1738342265929,-500.0,0.00017123,2]
[351117678,1738342265939,-500.0,0.00017123,2]
[351117679,1738342265948,-932.44,0.00017123,2]